[Event "Marienbad Open IM B 2025"]
[Site "Marianske Lazne"]
[Date "2025.01.21"]
[Round "5.14"]
[White "Vaculik, Jakub"]
[Black "Bhagat Kush"]
[Result "1/2-1/2"]
[Annotator "TA"]
[ECO "A48"]
[WhiteElo "2281"]
[BlackElo "2294"]
[PlyCount "123"]
[EventDate "2025.01.18"]
[EventType "tourn"]
[EventCountry "CZE"]
[SourceTitle "playchess.com"]
[Source "ChessBase"]
[SourceQuality "1"]
[TimeControl "40/5400+30:1800+30"]

{[%evp 18,123,-14,-12,19,15,21,19,18,7,19,-7,8,0,39,42,50,41,60,62,75,23,21,1,50,0,0,0,0,0,18,22,41,24,24,23,108,50,60,37,114,121,329,343,486,512,665,328,319,318,295,282,266,31,20,23,24,0,0,0,8,10,24,0,48,37,229,37,36,0,25,25,57,51,53,33,79,48,48,48,79,79,79,79,79,79,79,79,79,79,79,79,79,79,79,79,79,0,36,0,36,36,36,0,0,0,0,0]} 1. d4 {[%emt 0:00:03]} Nf6 {[%emt 0:02:22]} 2. Nf3 {[%emt 0:00:11]} g6 {[%emt 0:00:06]} 3. Bg5 {[%emt 0:00:27]} Bg7 {[%emt 0:00:37]} 4. Nbd2 {[%emt 0:00:44]} O-O {[%emt 0:00:29]} 5. c3 {[%emt 0:00:25]} d6 {[%emt 0:07:00]} 6. e4 {[%emt 0:00:48]} Nbd7 {[%emt 0:00:42]} 7. Be2 {[%emt 0:01:00]} h6 {[%emt 0:03:34]} 8. Bh4 {[%emt 0:00:45]} e5 {[%emt 0:00:53]} 9. dxe5 {[%emt 0:02:35]} dxe5 {[%emt 0:02:53]} 10. O-O {[%emt 0:01:52]} b6 {[%emt 0:01:06]} 11. Qc2 {[%emt 0:02:45]} Bb7 {[%emt 0:00:30]} 12. Rfe1 {[%emt 0:00:54]} Qe7 {[%emt 0:02:04]} 13. a4 {[%emt 0:05:34]} a5 {[%emt 0:02:45]} 14. Bb5 {[%emt 0:04:14]} Nc5 {[%emt 0:07:06]} 15. Rac1 {[%emt 0:15:10]} Rac8 {[%emt 0:07:33]} 16. b4 {[%emt 0:05:29]} axb4 {[%emt 0:11:34]} 17. cxb4 {[%emt 0:00:12]} c6 {[%emt 0:04:10]} 18. Bf1 {[%emt 0:02:22]} (18. bxc5 cxb5 19. Qd3 bxa4 (19... bxc5 20. Bxf6 Bxf6 21. axb5 $14) 20. cxb6 Rxc1 21. Rxc1 Rd8 $15) 18... Na6 {[%emt 0:07:51]} 19. Bxa6 {[%emt 0:03:49]} (19. Qb2 $16) 19... Bxa6 $11 {[%emt 0:00:03]} 20. Qc3 {[%emt 0:01:26]} Rfd8 {[%emt 0:08:57]} (20... g5 $11) 21. Nc4 {[%emt 0:04:37]} (21. Qxe5 Qxe5 (21... Qxb4 $2 22. Bxf6 Bxf6 23. Qxf6 $18) 22. Nxe5 Rxd2 $15) (21. Nxe5 $14 g5 (21... Rxd2 22. Nxc6 Qd6 23. b5 $16) 22. Nxc6) 21... Bxc4 {[%emt 0:04:51]} 22. Qxc4 {[%emt 0:00:07]} g5 {[%emt 0:08:30]} 23. Bg3 {[%emt 0:00:10]} Nh5 {[%emt 0:00:09]} 24. Red1 {[%emt 0:04:52]} Nxg3 {[%emt 0:09:26]} 25. hxg3 {[%emt 0:00:25]} Rxd1+ $1 {[%emt 0:06:10]} 26. Rxd1 {[%emt 0:00:02]} Qb7 {[%emt 0:00:22] Black is weak on the light squares} (26... Bf8 $11) 27. Rc1 {[%emt 0:03:58] White is much more active.} (27. a5 $16) 27... Ra8 {[%emt 0:01:36]} 28. Qc2 {[%emt 0:07:09][%cal Oc1d1]} b5 {[%emt 0:00:36]} (28... Kh7 $14) 29. a5 $16 {[%emt 0:01:50]} (29. Qxc6 Qxc6 30. Rxc6 bxa4 $17 (30... Rxa4 31. Kf1 $17)) 29... Bf8 $2 {[%emt 0:00:29]} (29... Rc8 $16 30. Qb3 g4) 30. Nxe5 $18 {[%emt 0:01:20]} (30. Qxc6 $6 Qxc6 31. Rxc6 Bxb4 $18) 30... Bxb4 {[%emt 0:00:06]} (30... c5 {was necessary.} 31. bxc5 Qe7) 31. Ng4 {[%emt 0:00:53]} (31. Qxc6 Qxc6 32. Nxc6 Ba3 $18 (32... Bxa5 $2 33. Ra1 $18)) (31. Nxc6 Bf8 32. e5 Ba3 $16) 31... Bxa5 {[%emt 0:00:56]} 32. Nxh6+ {[%emt 0:01:21]} (32. Nf6+ $142 Kf8 33. Qc5+ (33. Qxc6 Qxc6 34. Rxc6 b4 $17) 33... Kg7 34. Nh5+ Kg8 (34... Kg6 35. Qf5+ Kxh5 36. g4+ Kh4 37. Qf3 Rh8 38. Qh3#) 35. Qe5 (35. Qxc6 Qxc6 36. Rxc6 Kh7 $11)) 32... Kh7 {[%emt 0:00:12]} 33. Ng4 {[%emt 0:00:44]} (33. Qxc6 Qxc6 34. Rxc6 b4 35. Nxf7 b3 $17) 33... Bd8 {[%emt 0:00:40]} 34. e5+ {[%emt 0:06:10]} (34. Qxc6 Qxc6 35. Rxc6 b4 $16) 34... Kg7 {[%emt 0:00:13]} 35. Qe4 $2 {[%emt 0:01:59]} ({Not} 35. Qxc6 Qxc6 36. Rxc6 b4 $14) (35. e6 $18 Qc8 36. Qc3+ (36. Qxc6 Qxc6 37. Rxc6 b4 $11) 36... f6 37. Qb3 (37. Qxc6 Qxc6 38. Rxc6 b4 $11)) 35... Qd7 $1 $14 {[%emt 0:00:46]} 36. Ne3 {[%emt 0:00:42][%cal Oc1d1,Bg4e3,Be3f5,Bf5d6][%mdl 32]} (36. Rxc6 Ra1+ 37. Kh2 Qd1 $19) 36... Ra4 {[%emt 0:00:38]} 37. Qxc6 {[%emt 0:08:30]} Qxc6 {[%emt 0:00:13]} 38. Rxc6 $11 {[%emt 0:00:02][%mdl 4096] Endgame KRB-KRN. White is a pawn up.} Re4 {[%emt 0:00:30]} 39. Nf5+ {[%emt 0:01:14]} Kh7 {[%emt 0:00:01]} 40. Nd6 {[%emt 0:04:58][%csl LRb5,LRe4,LRf7]} Rxe5 {[%emt 0:01:00]} (40... Re1+ $1 $11 41. Kh2 Be7) 41. Nxf7 $14 {[%emt 0:30:49]} Re1+ {[%emt 0:02:54]} 42. Kh2 {[%emt 0:00:00]} Be7 {[%emt 0:00:11]} 43. Nd6 {[%emt 0:00:00]} Re6 {[%emt 0:09:42] Strongly threatening ...Rh6+.} 44. Rc7 $1 {[%emt 0:00:00]} Rxd6 {[%emt 0:01:22]} 45. Rxe7+ $11 {[%emt 0:00:00] KR-KR. White is a pawn up.} Kg6 {[%emt 0:00:03]} 46. Rb7 {[%emt 0:00:00] Wards off Rb6} g4 {[%emt 0:00:54]} (46... Rd5 $1 $14 {should be considered.}) 47. Rxb5 {[%emt 0:00:00] aiming for f3.} Rd2 {[%emt 0:00:16]} 48. Rb4 {[%emt 0:00:00]} Rxf2 {[%emt 0:01:20]} 49. Rxg4+ {[%emt 0:00:00]} Kh5 {[%emt 0:01:34]} 50. Rf4 {[%emt 0:00:00]} Ra2 {[%emt 0:00:11]} 51. Kh3 {[%emt 0:00:00]} Kg5 {[%emt 0:00:47]} 52. Rf3 {[%emt 0:00:00]} Ra1 {[%emt 0:01:01][%cal Ra1h1]} 53. g4 {[%emt 0:00:00]} Rh1+ {[%emt 0:00:46]} 54. Kg3 {[%emt 0:00:00]} Ra1 {[%emt 0:00:05]} 55. Rf5+ {[%emt 0:00:00]} Kg6 {[%emt 0:00:06]} 56. Rb5 {[%emt 0:00:00]} Rc1 {[%emt 0:00:18]} 57. g5 {[%emt 0:00:00]} (57. Rd5 $16) 57... Rc4 {[%emt 0:00:27]} 58. Re5 {[%emt 0:00:00]} Ra4 {[%emt 0:00:36]} 59. Kf3 {[%emt 0:00:00]} Ra3+ {[%emt 0:00:29]} 60. Kf4 {[%emt 0:00:00]} (60. Kg4 $5) 60... Ra4+ {[%emt 0:00:23]} 61. Re4 {[%emt 0:00:00]} Rxe4+ {[%emt 0:00:37]} 62. Kxe4 {[%emt 0:00:00]} 1/2-1/2

[Event "Marienbad Open IM B 2025"]
[Site "Marianske Lazne"]
[Date "2025.01.21"]
[Round "5.15"]
[White "Sliwerski, Radoslaw"]
[Black "Roesemann, Rainer"]
[Result "0-1"]
[Annotator "TA"]
[ECO "E20"]
[WhiteElo "2040"]
[BlackElo "2276"]
[PlyCount "82"]
[EventDate "2025.01.18"]
[EventType "tourn"]
[EventCountry "CZE"]
[SourceTitle "playchess.com"]
[Source "ChessBase"]
[SourceQuality "1"]
[TimeControl "40/5400+30:1800+30"]

{[%evp 10,82,-3,4,24,0,0,-3,28,31,44,33,55,49,49,48,43,44,50,50,74,65,83,44,54,27,35,20,21,27,20,-30,-43,-70,-68,-72,-67,-75,-28,-133,-120,-155,-155,-145,-127,-115,-104,-109,-43,-33,-41,-15,-47,-244,-220,-216,-201,-185,0,-331,12,0,41,39,34,48,1402,1331,1137,671,634,-1210,-1183,-1014,-397]} 1. d4 {[%emt 0:00:02][%cal Bd2d4,Bd4d5][%mdl 32]} Nf6 {[%emt 0:00:09]} 2. c4 {[%emt 0:00:06]} e6 {[%emt 0:00:05]} 3. Nc3 {[%emt 0:00:17]} Bb4 {[%emt 0:00:09]} 4. f3 {[%emt 0:00:08]} c5 {[%emt 0:00:08]} 5. d5 {[%emt 0:00:01]} d6 {[%emt 0:00:18]} 6. e4 {[%emt 0:00:07]} b5 {[%emt 0:00:16]} 7. Bd2 {[%emt 0:00:05]} a6 {[%emt 0:03:01]} 8. a4 {[%emt 0:01:29]} bxc4 {[%emt 0:05:32] The position is equal.} 9. Bxc4 {[%emt 0:01:18]} e5 {[%emt 0:02:21]} 10. Nge2 {[%emt 0:02:14]} O-O {[%emt 0:01:27]} 11. O-O {[%emt 0:00:05]} Re8 {[%emt 0:02:49]} 12. Qc2 {[%emt 0:07:14]} Nbd7 {[%emt 0:01:17]} 13. Nd1 {[%emt 0:08:50]} Bxd2 {[%emt 0:01:51]} 14. Qxd2 {[%emt 0:00:03]} Nf8 {[%emt 0:04:05]} 15. a5 {[%emt 0:01:24]} Ng6 {[%emt 0:13:20]} 16. Ndc3 {[%emt 0:04:46]} Bd7 {[%emt 0:06:15]} 17. Qd3 {[%emt 0:01:07]} Nh5 {[%emt 0:01:05]} 18. g3 {[%emt 0:02:40]} Qg5 {[%emt 0:01:20]} 19. Kh1 {[%emt 0:00:59]} (19. Qc2 {is more complex.} Bh3 20. Qc1 Ngf4 21. Rf2) 19... Reb8 {[%emt 0:02:33]} 20. Rfb1 {[%emt 0:01:34]} (20. b3 $142) 20... Bh3 $11 {[%emt 0:01:42][%cal Oh5f4]} 21. Ra3 {[%emt 0:08:10][%cal Oc3a4] [#]} (21. Bxa6 $2 Nhf4 22. Nxf4 (22. gxf4 $2 Qg2#) 22... exf4 $19 (22... Nxf4 23. Qc2 $17)) 21... Nhf4 $1 {[%emt 0:01:50] Black is more active.} 22. Nxf4 {[%emt 0:05:37]} exf4 {[%emt 0:02:49]} 23. Qd2 {[%emt 0:04:13]} Qf6 {[%emt 0:01:38]} (23... Rb4 $17 24. Ra4 Rb7 (24... Ne5 25. Be2 $11)) 24. Nd1 {[%emt 0:08:27]} (24. Na4 $1 $11) 24... Rb4 $17 {[%emt 0:02:53]} 25. Be2 {[%emt 0:01:18] [#]} Bd7 $1 {[%emt 0:12:48]} 26. Nf2 {[%emt 0:05:58]} fxg3 {[%emt 0:03:03]} 27. hxg3 {[%emt 0:00:12]} Rab8 {[%emt 0:02:50][%cal Rb4b2]} 28. Bxa6 {[%emt 0:20:11]} Rxb2 {[%emt 0:00:42]} (28... c4 $17 {[%cal Ob4b3] ...Rb3! would now be deadly.} 29. Rc3 Rb3) 29. Rxb2 $15 {[%emt 0:00:04]} Rxb2 {[%emt 0:00:15]} 30. Qe3 {[%emt 0:00:41]} h5 {[%emt 0:12:58]} 31. Be2 $2 {[%emt 0:06:04]} (31. f4 $1 $15) 31... h4 $19 {[%emt 0:01:58]} 32. g4 {[%emt 0:00:34] [#]} Rb1+ $1 {[%emt 0:04:28]} 33. Bd1 {[%emt 0:04:55] White is weak on the dark squares} Ne5 $2 {[%emt 0:02:19]} ({Black should play} 33... Ra1 $19 {Strongly threatening ...Rxa3.} 34. a6 Qb2) 34. Ra2 {[%emt 0:04:40][%mdl 8192]} (34. a6 $11 {and White stays safe.} Bxg4 35. fxg4 Nxg4 36. Nxg4 Rxd1+ 37. Kh2 Qb2+ (37... Qf1 $2 38. Nf2 $18) 38. Nf2) 34... Bc8 $2 {[%emt 0:02:15]} (34... Qxf3+ 35. Qxf3 Nxf3 36. a6 $14) (34... Nxf3 $19 {aiming for ...Ne5.} 35. a6 Ne5 (35... Bc8 36. a7 $16)) 35. a6 {[%emt 0:00:32] Black must now prevent g5.} Bxa6 {[%emt 0:01:12]} 36. Rxa6 {[%emt 0:00:06]} Nxf3 {[%emt 0:00:17]} 37. Kg2 {[%emt 0:01:24]} Ng5 $2 {[%emt 0:01:36][%mdl 8192]} (37... Ne5 $14) 38. Ra8+ $18 {[%emt 0:00:11]} Kh7 {[%emt 0:00:08]} 39. Bc2 {[%emt 0:00:25] White wants to mate with e5+.} h3+ {[%emt 0:00:23]} 40. Kh2 $4 {[%emt 0:01:40][%mdl 8192]} (40. Nxh3 {gets mated.} Qf1+ 41. Kh2 Qh1+ 42. Kg3 Qxh3+ (42... Nxh3 $2 {loses.} 43. e5+ g6 44. Bxb1 $18) 43. Kf4 Rf1+ (43... Qh2+ 44. Qg3 Qd2+ 45. Qe3 Rf1+ 46. Kxg5 Qxe3+ 47. Kh5 Qh6#) (43... Qh2+ 44. Qg3 Qd2+ 45. Qe3 Rf1+ 46. Kxg5 Qxe3+ 47. Kh5 Qh6#)) (40. Qxh3+ $18 Nxh3 41. e5+ (41. Bxb1 $2 Qxf2+ 42. Kxh3 Qf1+ 43. Kh2 Qxb1 $19) 41... Qg6 42. Bxg6+ Kxg6 43. exd6 (43. Nxh3 dxe5 44. Rc8 Rb2+ 45. Nf2 Rd2 $18) 43... Nf4+ 44. Kg3 Ne2+ 45. Kf3 Nd4+ 46. Kg2) 40... Qe5+ $19 {[%emt 0:00:25]} 41. Qg3 {[%emt 0:30:14]} Rb2 $2 {[%emt 0:31:54] Weighted Error Value: White=0.60/Black=0.35.  Loses game:     	White=2     	Black=1      Missed win:     	---       	Black=2      Mistake:       	White=2     	Black=2      Inaccurate:     	White=3     	Black=2      OK:         	White=9     	Black=10     Best:        	White=3     	---        Strong:       	---       	Black=1      Brilliant:      	---       	Black=1} (41... Rf1 42. Nxh3 Nf3+ (42... Nxe4 $2 {perishes.} 43. Qxe5 dxe5 44. Ng5+ Kg6 45. Nxe4 $18) 43. Kg2 Ne1+ 44. Kxf1 Qxg3) 0-1